bitfinex/quotes_SOLUSD_20240615
["timestamp","ask_amount","ask_price","bid_price","bid_amount"]
[1718468587913,16.3784,145.3,145.26,5.57]
[1718468588803,6.1439,145.33,145.29,5.57]
[1718468588997,6.1439,145.33,145.31,5.57]
[1718468590202,6.1439,145.33,145.3,5.57]
[1718468590921,6.1439,145.33,145.31,5.57]
[1718468591836,6.1439,145.37,145.32,5.57]
[1718468592035,16.3784,145.38,145.36,5.57]
[1718468592237,16.3784,145.38,145.37,5.57]
[1718468595917,16.3784,145.38,145.36,5.57]
[1718468596239,16.3784,145.38,145.34,5.57]
[1718468596419,16.3784,145.38,145.31,0.68]
[1718468596624,16.3784,145.38,145.34,5.57]
[1718468596939,16.3784,145.38,145.31,0.34]
[1718468597128,21.9484,145.38,145.3,0.34]
[1718468597330,21.9484,145.38,145.32,5.57]
[1718468597720,21.9484,145.38,145.33,5.57]
[1718468599013,21.9484,145.38,145.32,5.57]
[1718468600127,6.1439,145.37,145.26,11.9142]
[1718468600315,6.1439,145.37,145.25,27.50966785]
[1718468600316,5.57,145.35,145.3,5.57]
[1718468602940,6.1439,145.37,145.3,5.57]
[1718468603137,5.57,145.35,145.3,5.57]
[1718468604747,5.57,145.35,145.29,5.57]
[1718468605544,5.57,145.36,145.3,5.57]
[1718468605746,8.6892,145.37,145.3,5.57]
[1718468605957,5.57,145.35,145.3,5.57]
[1718468607152,13.7796,145.37,145.3,5.57]
[1718468607375,2.5454,145.36,145.3,5.57]
[1718468607530,7.6362,145.36,145.3,5.57]
[1718468607732,2.5456,145.35,145.29,5.57]
[1718468608048,2.5455,145.35,145.29,5.57]
[1718468608248,16.2705,145.33,145.25,0.17]
[1718468608456,21.8405,145.33,145.27,5.57]
[1718468608635,16.2705,145.33,145.28,5.57]
[1718468609851,16.2705,145.33,145.29,5.57]
[1718468610048,16.2705,145.33,145.25,22.62]
[1718468610249,16.2705,145.33,145.26,0.17]
[1718468610425,16.2705,145.33,145.26,0.51]
[1718468610632,16.2705,145.33,145.26,0.34]
[1718468614374,16.2705,145.33,145.31,5.57]
[1718468614581,16.2705,145.33,145.32,5.57]
[1718468614734,22.4144,145.37,145.32,5.57]
[1718468615746,22.4144,145.37,145.27,0.34]
[1718468615747,22.4144,145.37,145.33,5.57]
[1718468616156,22.4144,145.37,145.27,0.34]
[1718468616462,22.4144,145.37,145.33,5.57]
[1718468619448,22.4144,145.37,145.32,5.57]
[1718468619647,30.0501,145.37,145.32,5.57]
[1718468619858,35.6201,145.37,145.29,0.17]
[1718468620039,35.6201,145.37,145.31,5.57]
[1718468620457,53.4368,145.37,145.29,0.17]
[1718468620745,30.5296,145.37,145.31,5.57]
[1718468621160,27.9844,145.37,145.31,5.57]
[1718468622257,22.4144,145.37,145.32,5.57]
[1718468623249,22.4144,145.37,145.33,5.57]
[1718468623650,22.4144,145.37,145.34,5.57]
[1718468623976,22.4144,145.37,145.35,5.57]
[1718468623977,16.2705,145.37,145.35,5.57]
[1718468624184,16.2705,145.37,145.3,0.34]
[1718468624185,16.2705,145.37,145.34,5.57]
[1718468624677,6.5627,145.4,145.35,5.57]
[1718468624983,6.5627,145.4,145.33,0.34]
[1718468625159,6.5627,145.4,145.36,5.57]
[1718468625357,6.5627,145.4,145.37,5.57]
[1718468625967,6.5627,145.4,145.34,0.68682684]
[1718468626359,6.5627,145.4,145.34,0.17]
[1718468627547,6.5627,145.4,145.33,0.17]
[1718468627751,6.5627,145.4,145.33,0.51]
[1718468629602,12.1327,145.4,145.35,5.57]
[1718468630587,12.1327,145.4,145.33,0.51]
[1718468630800,6.5627,145.4,145.3,0.17]
[1718468630976,5.57,145.39,145.33,5.57]
[1718468632708,6.5627,145.4,145.35,5.57]
[1718468633067,12.1327,145.4,145.35,5.57]
[1718468634095,6.5627,145.4,145.35,5.57]
[1718468635788,6.5627,145.4,145.36,5.57]
[1718468637610,6.5627,145.4,145.37,5.57]
[1718468640693,16.3213,145.41,145.38,5.57]
[1718468641008,16.3213,145.41,145.39,5.57]
[1718468641591,16.3213,145.41,145.38,5.57]
[1718468642403,16.3213,145.41,145.32,0.17]
[1718468642601,16.3213,145.41,145.37,5.57]
[1718468642910,16.3213,145.41,145.36,5.57]
[1718468642911,18.8658,145.41,145.36,5.57]
[1718468643092,24.4358,145.41,145.36,5.57]
[1718468643294,29.5249,145.41,145.36,5.57]
[1718468643506,16.3213,145.41,145.36,5.57]
[1718468643699,21.8913,145.41,145.36,5.57]
[1718468643920,21.8913,145.41,145.32,22.96]
[1718468643921,16.3213,145.41,145.37,5.57]
[1718468646009,16.3213,145.41,145.36,5.57]
[1718468646214,18.8658,145.41,145.36,5.57]
[1718468646414,16.3213,145.41,145.36,5.57]
[1718468649735,6.6385,145.4,145.31,8.34374214]
[1718468650024,5.57,145.39,145.33,5.57]
[1718468651030,5.57,145.39,145.34,5.57]
[1718468653017,5.57,145.39,145.33,5.57]
[1718468653519,8.1148,145.39,145.33,5.57]
[1718468653699,15.1356,145.38,145.28,8.29555172]
[1718468654030,5.57,145.37,145.28,8.29555172]
[1718468654196,5.57,145.37,145.32,5.57]
[1718468654396,20.7056,145.38,145.32,5.57]
[1718468657408,15.1356,145.38,145.33,5.57]
[1718468657594,15.1356,145.38,145.29,0.17]
[1718468657798,15.1356,145.38,145.33,5.57]
[1718468658523,15.1356,145.38,145.29,0.68]
[1718468658729,15.1356,145.38,145.28,8.29555172]
[1718468658730,6.6385,145.36,145.31,5.57]
[1718468659024,5.57,145.33,145.21,100.0]
[1718468659229,5.57,145.32,145.21,105.5290183]
[1718468659403,5.57,145.32,145.27,5.57]
[1718468659745,5.57,145.32,145.21,13.87276044]
[1718468659908,5.57,145.32,145.27,5.57]
[1718468660909,27.3441,145.31,145.25,5.57]
[1718468662124,21.7741,145.31,145.26,5.57]
[1718468663407,21.7741,145.31,145.27,5.57]
[1718468664606,21.7741,145.31,145.22,0.17]
[1718468664808,27.3441,145.31,145.25,5.57]
[1718468666001,21.7741,145.31,145.26,5.57]
[1718468666418,21.7741,145.31,145.22,0.51]
[1718468666636,21.7741,145.31,145.27,5.57]
[1718468667715,21.7741,145.31,145.26,5.57]
[1718468668109,27.3441,145.31,145.23,0.17]
[1718468668313,27.3441,145.31,145.25,5.57]
[1718468670647,5.57,145.3,145.23,0.17]
[1718468670938,5.57,145.3,145.25,5.57]
[1718468671241,5.57,145.3,145.24,5.57]
[1718468673131,5.57,145.3,145.25,5.57]
[1718468673641,5.57,145.3,145.23,0.17]
[1718468673824,5.57,145.3,145.24,5.57]
[1718468674145,5.57,145.3,145.23,0.17]
[1718468674314,5.57,145.3,145.24,5.57]
[1718468674714,5.57,145.3,145.23,0.17]
[1718468674916,5.57,145.3,145.25,5.57]
[1718468675948,27.3441,145.31,145.26,5.57]
[1718468676255,27.3441,145.31,145.23,0.17]
[1718468676417,27.3441,145.31,145.25,5.57]
[1718468678426,27.3441,145.31,145.23,0.17]
[1718468678427,27.3441,145.31,145.26,5.57]
[1718468679721,21.7741,145.31,145.28,5.57]
[1718468680430,21.7741,145.31,145.23,0.17]
[1718468680636,29.8904,145.31,145.25,5.57]
[1718468680833,5.57,145.3,145.25,5.57]
[1718468681137,5.57,145.3,145.24,5.57]
[1718468681513,8.1164,145.3,145.24,5.57]
[1718468681734,5.57,145.3,145.24,5.57]
[1718468683024,5.57,145.3,145.25,5.57]
[1718468684047,5.57,145.3,145.24,5.57]
[1718468685054,5.57,145.29,145.2,0.17]
[1718468685229,5.57,145.29,145.23,5.57]
[1718468688448,24.3205,145.31,145.24,5.57]
[1718468688449,21.7741,145.31,145.24,5.57]
[1718468688644,5.57,145.29,145.24,5.57]
[1718468689031,5.57,145.3,145.24,5.57]
[1718468689839,5.57,145.29,145.24,5.57]
[1718468690136,5.57,145.29,145.23,5.57]
[1718468690958,5.57,145.28,145.2,0.68]
[1718468691157,5.57,145.27,145.21,5.57]
[1718468691336,5.57,145.27,145.2,0.17]
[1718468691652,5.57,145.27,145.21,5.57]
[1718468692164,20.6063,145.26,145.21,5.57]
[1718468692362,20.6063,145.26,145.16,6.52588033]
[1718468692524,20.6063,145.26,145.2,5.57]
[1718468692729,15.0363,145.26,145.2,5.57]
[1718468693040,15.0363,145.26,145.16,6.52588033]
[1718468693041,15.0363,145.26,145.23,5.57]
[1718468693241,15.0363,145.26,145.18,22.28]
[1718468693541,15.0363,145.26,145.21,5.57]
[1718468694066,20.6063,145.26,145.2,5.57]
[1718468695255,20.6063,145.26,145.19,0.17]
[1718468695555,20.6063,145.26,145.21,5.57]
[1718468695950,6.0769,145.25,145.21,5.57]
[1718468697963,6.0769,145.25,145.18,22.62]
[1718468698147,6.0769,145.25,145.21,5.57]
[1718468698759,6.0769,145.25,145.18,0.34]
[1718468698926,6.0769,145.25,145.21,5.57]
[1718468700167,15.0363,145.26,145.23,5.57]
[1718468700368,6.0769,145.29,145.25,5.57]
[1718468700669,6.0769,145.29,145.26,5.57]
[1718468701345,6.0769,145.29,145.19,11.9142]
[1718468701551,6.0769,145.29,145.22,5.57]
[1718468701755,5.57,145.28,145.2,0.34]
[1718468701941,5.57,145.27,145.22,5.57]
[1718468702146,5.57,145.28,145.22,5.57]
[1718468704440,5.57,145.28,145.2,0.34]
[1718468704641,5.57,145.28,145.21,0.17]
[1718468704942,5.57,145.28,145.22,5.57]
[1718468705871,22.0154,145.27,145.16,0.8522481]
[1718468706163,5.57,145.26,145.2,5.57]
[1718468706359,5.57,145.25,145.2,5.57]
[1718468706573,5.57,145.25,145.19,5.57]
[1718468708269,5.57,145.25,145.16,0.8522481]
[1718468708468,5.57,145.25,145.17,0.17]
[1718468708681,5.57,145.25,145.16,0.8522481]
[1718468708900,25.4715,145.26,145.16,0.8522481]
[1718468708901,5.57,145.24,145.19,5.57]
[1718468710885,5.57,145.24,145.16,0.8522481]
[1718468711088,5.57,145.24,145.19,5.57]
[1718468712878,5.57,145.21,145.16,0.8522481]
[1718468713081,5.57,145.19,145.16,0.8522481]
[1718468713464,5.57,145.21,145.16,0.8522481]
[1718468713866,15.0384,145.22,145.17,5.57]
[1718468714086,15.0384,145.22,145.18,5.57]
[1718468714408,15.0384,145.22,145.16,0.8522481]
[1718468714774,15.0384,145.22,145.18,5.57]
[1718468715021,15.0384,145.22,145.19,5.57]
[1718468715526,15.0384,145.22,145.16,0.8522481]
[1718468716003,15.0384,145.22,145.2,5.57]
[1718468716509,15.0384,145.22,145.21,5.57]
[1718468718410,22.28,145.32,145.21,5.57]
[1718468718411,15.0384,145.3,145.22,0.17]
[1718468718592,15.0384,145.3,145.28,5.57]
[1718468718809,15.0384,145.3,145.29,5.57]
[1718468719003,15.0384,145.35,145.29,5.74]
[1718468719207,15.0384,145.35,145.32,5.57]
[1718468719400,15.0384,145.35,145.29,0.51]
[1718468719581,15.0384,145.35,145.32,5.57]
[1718468720310,15.0384,145.35,145.3,0.34]
[1718468720531,15.0384,145.35,145.32,5.57]
[1718468721116,15.0384,145.35,145.31,5.07]
[1718468723812,15.0384,145.35,145.32,5.57]
[1718468724519,15.0384,145.35,145.31,5.57]
[1718468724925,15.0384,145.35,145.32,5.57]
[1718468725222,15.0384,145.35,145.34,5.57]
[1718468726693,15.0384,145.35,145.3,0.17]
[1718468726907,15.0384,145.35,145.32,5.57]
[1718468727117,15.0384,145.35,145.33,5.57]
[1718468727513,15.0384,145.35,145.31,5.57]
[1718468727823,15.0384,145.35,145.33,5.57]
[1718468728000,15.0384,145.35,145.32,5.57]
[1718468728532,15.0384,145.35,145.33,5.57]
[1718468729429,21.3626,145.39,145.34,5.57]
[1718468729598,15.7926,145.39,145.34,5.57]
[1718468730012,18.3374,145.39,145.34,5.57]
[1718468730226,15.7926,145.39,145.34,5.57]
[1718468731124,15.7926,145.39,145.35,5.57]
[1718468731328,15.7926,145.39,145.36,5.57]
[1718468731536,15.7926,145.39,145.37,5.57]
[1718468732629,15.7926,145.39,145.36,5.57]
[1718468732830,15.7926,145.39,145.35,5.57]
[1718468733217,15.7926,145.39,145.34,5.57]
[1718468734119,15.7926,145.39,145.35,5.57]
[1718468735346,18.3374,145.39,145.34,5.57]
[1718468735516,23.9074,145.39,145.34,5.57]
[1718468735712,15.7926,145.39,145.34,5.57]
[1718468735918,15.7926,145.39,145.35,5.57]
[1718468736228,21.3626,145.39,145.33,5.57]
[1718468736425,15.7926,145.39,145.28,0.17]
[1718468736736,15.7926,145.39,145.34,5.57]
[1718468737737,15.7926,145.39,145.27,100.0]
[1718468737738,18.3375,145.39,145.27,100.0]
[1718468738049,15.7926,145.39,145.32,22.28]
[1718468738232,15.7926,145.39,145.38,5.57]
[1718468738744,15.7926,145.39,145.37,5.57]
[1718468738944,15.7926,145.39,145.28,40.66]
[1718468738945,15.7926,145.39,145.28,20.0]
[1718468739150,21.3626,145.39,145.33,5.57]
[1718468739521,28.9973,145.39,145.28,20.0]
[1718468739721,21.3626,145.39,145.33,5.57]
[1718468740741,15.7926,145.39,145.33,5.57]
[1718468741048,2.5451,145.38,145.32,5.57]
[1718468741231,5.57,145.37,145.27,0.17]
[1718468741550,5.57,145.37,145.31,5.57]
[1718468742548,5.57,145.37,145.32,5.57]
[1718468742926,5.57,145.38,145.32,5.57]
[1718468743245,23.9074,145.39,145.33,5.57]
[1718468743438,21.3626,145.39,145.33,5.57]
[1718468743748,23.9074,145.39,145.33,5.57]
[1718468744947,28.9971,145.39,145.33,5.57]
[1718468745123,46.8115,145.39,145.33,5.57]
[1718468745540,5.57,145.38,145.32,5.57]
[1718468746552,5.57,145.38,145.33,5.57]
[1718468748248,15.7926,145.39,145.32,6.08]
[1718468748455,15.7926,145.39,145.37,5.57]
[1718468751025,15.7926,145.39,145.33,0.17]
[1718468751223,15.7926,145.39,145.37,5.57]
[1718468751851,15.7926,145.39,145.36,5.57]
[1718468752432,15.7926,145.39,145.37,5.57]
[1718468754342,15.7926,145.39,145.32,22.79]
[1718468754653,15.7926,145.39,145.36,5.57]
[1718468755857,15.7926,145.39,145.32,22.28]
[1718468756029,23.9074,145.39,145.27,7.22727591]
[1718468756226,23.9074,145.39,145.34,5.57]
[1718468756442,23.9075,145.39,145.34,5.57]
[1718468756862,21.3626,145.39,145.34,5.57]
[1718468757244,21.3626,145.39,145.27,7.22727591]
[1718468757245,26.4523,145.39,145.28,0.17]
[1718468757437,23.9075,145.39,145.34,5.57]
[1718468758660,21.3626,145.39,145.34,5.57]
[1718468758827,23.9074,145.39,145.34,5.57]
[1718468759371,23.9075,145.39,145.34,5.57]
[1718468759734,2.5453,145.37,145.34,5.57]
[1718468760074,8.1157,145.35,145.28,5.57]
[1718468760257,40.5636,145.36,145.28,5.57]
[1718468760258,5.57,145.33,145.28,5.57]
[1718468761053,5.57,145.33,145.23,5.50504899]
[1718468761250,5.57,145.33,145.22,18.1968]
[1718468761448,5.57,145.33,145.28,5.57]
[1718468761643,5.57,145.32,145.22,18.1968]
[1718468761873,5.57,145.31,145.26,5.57]
[1718468762058,16.3325,145.3,145.25,5.57]
[1718468762260,21.9025,145.3,145.25,5.57]
[1718468762772,27.9634,145.3,145.18,139.0067]
[1718468762972,27.9634,145.3,145.24,5.57]
[1718468763556,27.9634,145.3,145.18,161.2867]
[1718468764181,27.9634,145.3,145.24,5.57]
[1718468766379,22.3934,145.3,145.26,5.57]
[1718468767053,22.3934,145.3,145.27,5.57]
[1718468767358,15.796,145.33,145.29,5.57]
[1718468767778,15.796,145.33,145.3,5.57]
[1718468769001,15.796,145.33,145.26,0.51]
[1718468769177,15.796,145.33,145.27,0.17]
[1718468769489,15.796,145.33,145.27,0.34]
[1718468769995,15.796,145.33,145.28,0.17]
[1718468770195,15.796,145.33,145.28,0.34]
[1718468773592,15.796,145.33,145.27,0.34]
[1718468773768,15.796,145.33,145.27,0.17]
[1718468774193,22.903,145.4,145.27,0.17]
[1718468774403,2.5449,145.39,145.27,16.88]
[1718468774696,7.6344,145.4,145.29,0.17]
[1718468774882,2.5448,145.4,145.29,0.17]
[1718468775079,7.6345,145.39,145.29,0.17]
[1718468775290,2.5451,145.38,145.29,0.17]
[1718468775494,6.1073,145.36,145.28,0.51]
[1718468790815,6.1073,145.36,145.31,5.57]
[1718468792325,6.1073,145.36,145.28,0.51]
[1718468792504,6.1073,145.36,145.31,5.57]
[1718468795914,15.796,145.37,145.31,5.57]
[1718468796228,11.8412,145.4,145.34,5.57]
[1718468796532,11.8412,145.4,145.35,5.57]
[1718468796907,11.8412,145.4,145.34,5.57]
[1718468797317,11.8412,145.4,145.31,0.17]
[1718468797318,5.57,145.39,145.3,0.51]
[1718468797525,5.57,145.39,145.33,5.57]
[1718468798525,6.2712,145.4,145.33,5.57]
[1718468798733,5.57,145.39,145.33,5.57]
[1718468799536,5.57,145.39,145.3,0.51]
[1718468799731,5.57,145.37,145.31,5.57]
[1718468799912,2.545,145.38,145.29,18.1614]
[1718468800106,5.57,145.37,145.31,5.57]
[1718468802758,2.545,145.39,145.31,5.57]
[1718468803055,5.57,145.37,145.31,5.57]
[1718468803415,5.57,145.38,145.29,18.1614]
[1718468803835,5.57,145.37,145.29,18.1614]
[1718468804026,5.57,145.37,145.31,5.57]
[1718468807371,5.57,145.37,145.29,18.1614]
[1718468807581,5.57,145.37,145.31,5.57]
[1718468812379,5.57,145.37,145.29,18.1614]
[1718468812558,5.57,145.36,145.31,5.57]
[1718468814371,0.34,145.38,145.31,5.57]
[1718468814586,5.57,145.37,145.32,5.57]
[1718468815275,6.2712,145.4,145.32,5.57]
[1718468815481,6.2712,145.4,145.34,5.57]
[1718468815691,11.8412,145.4,145.34,5.57]
[1718468816952,0.17,145.39,145.29,18.1614]
[1718468817156,27.1095,145.4,145.33,5.57]
[1718468817157,5.57,145.38,145.33,5.57]
[1718468818576,5.57,145.38,145.32,5.57]
[1718468818880,5.57,145.37,145.32,5.57]
[1718468823554,5.57,145.38,145.32,5.57]
[1718468823781,5.57,145.36,145.29,11.9142]
[1718468824081,5.57,145.34,145.28,5.57]
[1718468824474,5.57,145.33,145.27,5.57]
[1718468827859,5.57,145.33,145.26,18.0899]
[1718468828361,5.57,145.33,145.27,5.57]
[1718468828763,5.57,145.33,145.26,18.0899]
[1718468828991,5.57,145.33,145.27,5.57]
[1718468832081,5.57,145.33,145.28,5.57]
[1718468832478,5.57,145.34,145.28,5.57]
[1718468832680,5.57,145.34,145.29,5.57]
[1718468832875,5.57,145.34,145.26,18.0899]
[1718468833112,0.17,145.35,145.26,18.0899]
[1718468833407,16.2305,145.36,145.29,5.57]
[1718468833565,16.2305,145.36,145.32,5.57]
[1718468833762,16.2305,145.36,145.27,0.17]
[1718468833997,16.2305,145.36,145.32,5.57]
[1718468838503,16.2305,145.36,145.27,0.51]
[1718468838713,16.2305,145.36,145.32,5.57]
[1718468840918,16.2305,145.36,145.27,0.51]
[1718468841101,16.2305,145.36,145.31,5.57]
[1718468845038,5.57,145.34,145.26,11.9142]
[1718468845347,5.57,145.34,145.28,5.57]
[1718468845651,5.57,145.34,145.29,5.57]
[1718468845803,6.0338,145.35,145.3,5.57]
[1718468846006,6.0338,145.35,145.31,5.57]
[1718468846233,16.2305,145.36,145.32,5.57]
[1718468851924,16.2305,145.36,145.27,100.17]
[1718468852251,6.0338,145.39,145.35,5.57]
[1718468855155,15.9656,145.4,145.37,5.57]
[1718468855388,15.9656,145.4,145.32,22.28]
[1718468857064,15.9656,145.4,145.33,0.34]
[1718468857265,15.9656,145.4,145.34,0.17]
[1718468857485,15.9656,145.4,145.37,5.57]
[1718468857656,6.3269,145.43,145.39,5.57]
[1718468860047,15.9656,145.44,145.39,5.57]
[1718468860261,15.9656,145.44,145.4,5.57]
[1718468860665,15.9656,145.44,145.41,5.57]
[1718468861765,6.3269,145.46,145.42,5.57]
[1718468862379,6.3269,145.46,145.43,5.57]
[1718468862580,6.3269,145.46,145.39,5.57]
[1718468862781,6.3269,145.46,145.42,5.57]
[1718468863861,6.3269,145.46,145.41,5.57]
[1718468865474,11.8969,145.46,145.37,0.17]
[1718468865668,5.57,145.45,145.39,5.57]
[1718468866900,11.8969,145.46,145.4,5.57]
[1718468867977,6.3269,145.46,145.4,5.57]
[1718468868176,11.8969,145.46,145.4,5.57]
[1718468870899,6.3269,145.46,145.4,5.57]
[1718468871098,6.3269,145.46,145.37,0.51]
[1718468871275,6.3269,145.46,145.41,5.57]
[1718468872998,6.3269,145.46,145.42,5.57]
[1718468881213,6.3269,145.46,145.43,5.57]
[1718468883534,23.5955,145.48,145.39,5.57]
[1718468883535,15.9656,145.48,145.39,5.57]
[1718468883687,15.9656,145.48,145.45,5.57]
[1718468883891,15.9656,145.48,145.44,5.57]
[1718468885405,18.5089,145.48,145.4,0.51]
[1718468885598,18.5089,145.48,145.43,5.57]
[1718468886006,15.9656,145.48,145.43,5.57]
[1718468888403,15.9656,145.48,145.4,0.51]
[1718468888839,5.57,145.47,145.41,5.57]
[1718468889218,8.1135,145.47,145.37,0.17]
[1718468889430,5.57,145.47,145.37,0.68]
[1718468889720,5.57,145.47,145.41,5.57]
[1718468890526,15.9656,145.48,145.41,5.57]
[1718468890731,5.57,145.47,145.41,5.57]
[1718468890917,5.57,145.47,145.42,5.57]
[1718468892103,5.57,145.47,145.37,0.68]
[1718468892322,5.57,145.47,145.42,5.57]
[1718468893023,5.57,145.47,145.41,5.57]
[1718468893742,8.1134,145.47,145.41,5.57]
[1718468894037,5.57,145.47,145.41,5.57]
[1718468894698,15.9656,145.48,145.41,5.57]
[1718468894903,5.57,145.47,145.41,5.57]
[1718468895399,15.9656,145.48,145.41,5.57]
[1718468895615,5.57,145.47,145.41,5.57]
[1718468895910,5.57,145.47,145.42,5.57]
[1718468897830,5.57,145.47,145.37,0.68]
[1718468898029,5.57,145.47,145.41,5.57]
[1718468901110,5.57,145.46,145.4,5.57]
[1718468903425,5.57,145.45,145.37,0.34]
[1718468903747,16.5224,145.44,145.39,5.57]
[1718468904264,22.0924,145.44,145.39,5.57]
[1718468905333,16.5224,145.44,145.4,5.57]
[1718468905538,16.5224,145.44,145.35,0.17]
[1718468905748,16.5224,145.44,145.41,5.57]
[1718468906716,16.5224,145.44,145.35,0.68]
[1718468907121,16.5224,145.44,145.4,5.57]
[1718468908746,16.5224,145.44,145.41,5.57]
[1718468908951,16.5224,145.44,145.42,5.57]
[1718468909140,16.5224,145.44,145.43,25.4416]
[1718468920860,6.1681,145.47,145.46,25.4364]
[1718468929006,16.2219,145.48,145.47,25.4346]
[1718468929794,29.37465215,145.51,145.5,15.2576]
[1718468929795,6.139,145.51,145.5,15.2576]
[1718468929998,6.139,145.51,145.5,25.4294]
[1718468934700,21.4861,145.52,145.51,15.2565]
[1718468934901,15.9161,145.52,145.51,25.4276]
[1718468938093,16.0861,145.52,145.51,7.6282]
[1718468938275,16.0861,145.52,145.51,2.5427]
[1718468938481,16.0861,145.52,145.51,7.6282]
[1718468939279,16.0861,145.52,145.51,25.4276]
[1718468941297,15.9161,145.52,145.51,25.4276]
[1718468942889,2.5429,145.5,145.48,7.6296]
[1718468943084,23.0554,145.51,145.48,25.433]
[1718468943085,5.91,145.49,145.48,25.433]
[1718468943294,0.17,145.5,145.48,25.433]
[1718468943495,0.17,145.5,145.49,2.5431]
[1718468943700,5.74,145.5,145.49,2.5431]
[1718468945903,0.17,145.5,145.49,15.2586]
[1718468946105,0.17,145.5,145.49,25.4311]
[1718468946304,0.17,145.5,145.49,7.6293]
[1718468946492,0.17,145.5,145.49,25.4311]
[1718468946803,0.17,145.51,145.5,7.6288]
[1718468946980,5.74,145.51,145.49,25.4307]
[1718468949500,0.17,145.5,145.49,2.5429]
[1718468949700,0.17,145.5,145.49,2.5431]
[1718468950982,5.57,145.51,145.5,2.5429]
[1718468951312,5.74,145.51,145.5,2.5429]
[1718468951897,0.17,145.51,145.5,2.5429]
[1718468952610,16.0861,145.52,145.5,2.5429]
[1718468952797,21.6561,145.52,145.5,2.5429]
[1718468952997,21.6561,145.52,145.5,7.6287]
[1718468953715,21.6561,145.52,145.5,2.5429]
[1718468954013,21.4861,145.52,145.5,2.5429]
[1718468954315,24.0287,145.52,145.5,2.5429]
[1718468954686,15.9161,145.52,145.5,7.6287]
[1718468954891,21.4861,145.52,145.5,7.6287]
[1718468955093,21.4861,145.52,145.5,2.5429]
[1718468955530,15.9161,145.52,145.51,2.5427]
[1718468955729,0.17,145.53,145.51,2.5426]
[1718468956030,0.17,145.53,145.51,7.6281]
[1718468956229,0.17,145.53,145.51,2.5426]
[1718468956535,8.2824,145.53,145.51,2.5427]
[1718468956910,8.2824,145.53,145.5,25.428]
[1718468957139,0.17,145.52,145.5,25.428]
[1718468957305,0.17,145.52,145.51,2.5427]
[1718468958006,0.17,145.52,145.51,7.6282]
[1718468958302,0.17,145.53,145.52,2.5425]
[1718468958502,0.17,145.53,145.51,25.4273]